Workbook

Sheet Sheet1
A1: Supporting Information File 1
A2: Pore shape transition
A4: Porous materials: pore shape factor, pore length index and
A5: microporosity
A6: Titelman L.
A7: Beilstein Journal of Nanotechnology
A10: Yongjin Jeong,* Kyuhong Lee, Kinam Kim, and Sunghwan Kim
A11: Pore-Structure-Optimized CNT-Carbon Nanofibers from Starch
A12: for Rechargeable Lithium Batteries
A13: Materials (Basel). 2016 Dec; 9(12): 995.
A14: PMCID: PMC5457023
A15: PMID: 28774117
A18: " we report highly mesoporous carbon nanofibers reinforced with CNT,
A19: successfully fabricated using the unique lamellar structure of starch".
A20: "As a result, we can conclude that the optimum conditions for activation
A21: of the CNT-carbon nanofibers should be 800 °C for 30 min".
A23: Part 1. Starch nanofibers preparing.
A25: Designation materials
A26: SNF-700 | B26: Starch nanofiber carbonized at 700 °C
A27: SNF-1400 | B27: Starch nanofiber carbonized at 1400 °C
A29: Table S1-1.
A30: Physical characteristics of the carbonized starch nanofibers. SBET: surface area;
A31: Vt: total volume; Vmi: micropore volume; Vme: mesopore volume; Dp: diameter.
A33: Materials | B33: S BET, | C33: Vt, | D33: Vmi, | E33: Vme, | F33: Dp, | G33: F | H33: Vmi/Vme
B34: m2/g | C34: cm3/g | D34: cm3/g | E34: cm3/g | F34: nm
A35: SNF-700 | B35: 451 | C35: 0.23 | D35: 0.2 | E35: 0.03 | F35: 2 | G35: =F35*B35/C35 -> 3921.73913 | H35: =D35/E35 -> 6.666666667
A36: SNF-1400 | B36: 137 | C36: 0.16 | D36: 0.04 | E36: 0.12 | F36: 4.5 | G36: =F36*B36/C36 -> 3853.125 | H36: =D36/E36 -> 0.3333333333
A39: Materials | B39: Vmi/S BET
A41: SNF-700 | B41: =D35/B35 -> 0.00044345898
A42: SNF-1400 | B42: =D36/B36 -> 0.0002919708029
A45: Table S1 - 1 prolongation.
A46: Ls-c - conditional pore surface length, assuming that the pore is round.
A48: Materials | B48: Ls, | C48: Ls-c*E-09 | D48: Vmi, % | F48: F | G48: % circular | H48: % slit
B49: m/g | C49: m/g
A50: SNF-700 | B50: =B35*1000000000/(3.14*F35) -> 7.181528662e+10 | C50: 71.8 | D50: =100*D35/C35 -> 86.95652174 | F50: 3921.73913 | G50: =100*(F50-2000)/2000 -> 96.08695652 | H50: =100*(4000-F50)/2000 -> 3.913043478
A51: SNF-1400 | B51: =B36*1000000000/(3.14*F36) -> 9695682944 | C51: 9.7 | D51: =100*D36/C36 -> 25 | F51: 3853.125 | G51: =100*(F51-2000)/2000 -> 92.65625 | H51: =100*(4000-F51)/2000 -> 7.34375
A53: Result: an increase in the carbonization temperature practically did not change
A54: the pore shape: the pores remained circular and smooth, despite a sharp reduction
A55: in pore length and % micropores.
A57: Part 2. Preparing hybrid and activation in CO2 (C + CO2 = 2CO).
A59: Multi-walled carbon nanotubes (MWCNTs) was used.
A60: "This activation process etches the carbon backbones and gives rise to the creation
A61: and development of mesopores on the smooth surface of the CNT-carbon
A62: nanofibers".
A63: Designation materials
A64: Before | B64: Before activation
A65: CNT-15 m | B65: Activated at 800 °C for 15 min
A66: CNT-30 m | B66: Activated at 800 °C for 30 min
A67: CNT-17 m | B67: Activated at 800 °C for 45 min
A68: CNT-18 m | B68: Activated at 800 °C for 60 min
A70: Table S1-2.
A71: BET analysis of activated 1 wt % CNT-carbon nanofibers for various activation
A72: conditions.
A74: Physical | B74: BET SSA (m2·g−1) | E74: Average | F74: Pore Volume (cm3·g−1)
A75: Properties | B75: Micro-pore Area | C75: External Surface Area | D75: BET | E75: Pore | F75: Micro-pore Volume | G75: Meso-pore Volume | H75: Total
B76: pore surf | D76: Surf Area | E76: Diameter (nm) | H76: Pore Vol
A77: Materials | B77: Smi | C77: Sext | D77: S BET | E77: Dp, | F77: Vmi | G77: Vme | H77: Vt
B78: m2/g | C78: m2/g | D78: m2/g | E78: nm | F78: cm3/g | G78: cm3/g | H78: cm3/g
A79: Before | B79: 458.5 | C79: 21 | D79: 479.5 | E79: 1.8 | F79: 0.21 | G79: 0.01 | H79: 0.22
A80: CNT-15 m | B80: 788 | C80: 194.4 | D80: 982.4 | E80: 3.1 | F80: 0.36 | G80: 0.12 | H80: 0.48
A81: CNT-30 m | B81: 598.8 | C81: 374.2 | D81: 973 | E81: 4.1 | F81: 0.27 | G81: 0.26 | H81: 0.53
A82: CNT-45 m | B82: 625.3 | C82: 58.4 | D82: 683.7 | E82: 5.4 | F82: 0.28 | G82: 0.04 | H82: 0.32
A83: CNT-60 m | B83: 224.9 | C83: 120.2 | D83: 345.1 | E83: 6.8 | F83: 0.1 | G83: 0.19 | H83: 0.29
A85: Table S1-2 prolongation.
Z86: *D
A87: Etching | B87: Dp, | C87: S BET/Dp | D87: S BET | E87: Vt | F87: Vmi/Vme | G87: F | H87: Vmi/SBET
A88: time, min | B88: nm | C88: m2/(g*nm) | D88: m2/g | E88: cm3/g
A89: 0 | B89: 1.8 | C89: 8.48 | D89: 479.5 | E89: 0.22 | F89: =F79/G79 -> 21 | G89: 3923.181818 | H89: =F79/D79 -> 0.0004379562044
A90: 15 | B90: 3.1 | C90: 10.1 | D90: 982.4 | E90: 0.48 | F90: =F80/G80 -> 3 | G90: 6344.666667 | H90: =F80/D80 -> 0.0003664495114
A91: 30 | B91: 4.1 | C91: 7.56 | D91: 973 | E91: 0.53 | F91: =F81/G81 -> 1.038461538 | G91: 7526.981132 | H91: 0.0002774922919
A92: 45 | B92: 5.4 | C92: 4.03 | D92: 683.7 | E92: 0.32 | F92: =F82/G82 -> 7 | G92: 11537.4375 | H92: 0.0004095363464
A93: 60 | B93: 6.8 | C93: 1.62 | D93: 345.1 | E93: 0.29 | F93: =F83/G83 -> 0.5263157895 | G93: 8092 | H93: 0.0002897710808
G94: Average | H94: =AVERAGE(H89:H93) -> 0.000356241087
G95: STDEV | H95: =STDEV(H89:H93) -> 7.113647352e-05
G96: STD, % | H96: 19.96863251
A113: Fig. S1-1. S BET vs. Activation time.
A131: Fig. S1-2. Dp vs. Activation tume.
A149: Fig. S1-3. S BET/Dp (length analog) vs. Activation time.
A167: Fig.S1-4. Dependence Vt on activation time.
A184: Fig. S1-5. | B184: Dependence F on activation time; CNT-45 m is "critical" sample.
A203: Fig. S1-6. F vs. Vmi/Vme.
